[Event "*** Titled Tuesday Blitz"]
[Site "Chess.com"]
[Date "2021.03.02"]
[Round "6"]
[White "NicoChasin"]
[Black "BahadirOzen"]
[Result "1/2-1/2"]
[WhiteElo "2571"]
[BlackElo "2788"]
[TimeControl "180+1"]
[EndTime "11:01:58 PST"]
[Termination "Game drawn by agreement"]

1. d4 {[%clk 0:03:00.5]} 1... d6 {[%clk 0:03:00]} 2. e4 {[%clk 0:02:59.8]} 2...
g6 {[%clk 0:02:59.7]} 3. Nf3 {[%clk 0:02:59.7]} 3... Bg7 {[%clk 0:02:59.6]} 4.
c4 {[%clk 0:03:00.3]} 4... Bg4 {[%clk 0:02:56.8]} 5. Be2 {[%clk 0:02:56.5]} 5...
Nd7 {[%clk 0:02:39.1]} 6. Be3 {[%clk 0:02:54.3]} 6... c5 {[%clk 0:02:35.9]} 7.
Nc3 {[%clk 0:02:54.1]} 7... Bxf3 {[%clk 0:02:33.3]} 8. Bxf3 {[%clk 0:02:54.3]}
8... cxd4 {[%clk 0:02:32.6]} 9. Bxd4 {[%clk 0:02:55.2]} 9... Bxd4 {[%clk
0:02:31.5]} 10. Qxd4 {[%clk 0:02:56.1]} 10... Ngf6 {[%clk 0:02:32]} 11. g4
{[%clk 0:02:43.5]} 11... Qb6 {[%clk 0:02:28.7]} 12. Qxb6 {[%clk 0:02:41.8]}
12... Nxb6 {[%clk 0:02:27.9]} 13. e5 {[%clk 0:02:33]} 13... dxe5 {[%clk
0:02:09]} 14. Bxb7 {[%clk 0:02:32.5]} 14... Rb8 {[%clk 0:02:07.3]} 1/2-1/2

[Event "*** Titled Tuesday Blitz"]
[Site "Chess.com"]
[Date "2021.03.02"]
[Round "6"]
[White "SHIVACalypso"]
[Black "zim0ne"]
[Result "0-1"]
[WhiteElo "2345"]
[BlackElo "2518"]
[TimeControl "180+1"]
[EndTime "11:02:08 PST"]
[Termination "zim0ne won by resignation"]

1. Nf3 {[%clk 0:03:00.9]} 1... d5 {[%clk 0:02:58.3]} 2. c4 {[%clk 0:03:00.8]}
2... d4 {[%clk 0:02:57.6]} 3. e3 {[%clk 0:03:00.5]} 3... Nc6 {[%clk 0:02:56.6]}
4. exd4 {[%clk 0:02:59.5]} 4... Nxd4 {[%clk 0:02:56.9]} 5. Nxd4 {[%clk
0:03:00.4]} 5... Qxd4 {[%clk 0:02:57.8]} 6. Nc3 {[%clk 0:03:00.2]} 6... e5
{[%clk 0:02:57.8]} 7. Nb5 {[%clk 0:02:49.6]} 7... Qd8 {[%clk 0:02:52]} 8. d3
{[%clk 0:02:38.7]} 8... c6 {[%clk 0:02:51.2]} 9. Nc3 {[%clk 0:02:38.5]} 9... Nf6
{[%clk 0:02:49.9]} 10. Be3 {[%clk 0:02:36.4]} 10... Ng4 {[%clk 0:02:43.1]} 11.
Qd2 {[%clk 0:02:33.7]} 11... Nxe3 {[%clk 0:02:42.4]} 12. fxe3 {[%clk 0:02:34.6]}
12... Bc5 {[%clk 0:02:41.5]} 13. O-O-O {[%clk 0:02:30.7]} 13... O-O {[%clk
0:02:41.1]} 14. Be2 {[%clk 0:02:28.1]} 14... Bf5 {[%clk 0:02:39.4]} 15. Rhf1
{[%clk 0:02:23.6]} 15... Bg6 {[%clk 0:02:39.4]} 16. d4 {[%clk 0:02:23.5]} 16...
exd4 {[%clk 0:02:39.3]} 17. exd4 {[%clk 0:02:24.4]} 17... Be7 {[%clk 0:02:39.2]}
18. Bd3 {[%clk 0:02:17]} 18... Bg5 {[%clk 0:02:39.1]} 19. Rf4 {[%clk 0:02:08.3]}
19... Bxd3 {[%clk 0:02:38.1]} 0-1

[Event "*** Titled Tuesday Blitz"]
[Site "Chess.com"]
[Date "2021.03.02"]
[Round "6"]
[White "KRSilva"]
[Black "lucasmito"]
[Result "0-1"]
[WhiteElo "2218"]
[BlackElo "2502"]
[TimeControl "180+1"]
[EndTime "11:02:15 PST"]
[Termination "lucasmito won by resignation"]

1. e4 {[%clk 0:03:00.9]} 1... e5 {[%clk 0:03:00]} 2. Nf3 {[%clk 0:03:00.6]} 2...
Nc6 {[%clk 0:03:00.2]} 3. Bc4 {[%clk 0:03:01.2]} 3... Nf6 {[%clk 0:02:59.2]} 4.
d3 {[%clk 0:03:01.2]} 4... Bc5 {[%clk 0:02:59.4]} 5. c3 {[%clk 0:03:00.9]} 5...
d6 {[%clk 0:02:59.9]} 6. Bb3 {[%clk 0:03:00.9]} 6... a6 {[%clk 0:03:00.3]} 7.
O-O {[%clk 0:03:00.6]} 7... Ba7 {[%clk 0:03:00.5]} 8. h3 {[%clk 0:03:00.9]} 8...
h6 {[%clk 0:03:00.5]} 9. Re1 {[%clk 0:03:01.1]} 9... g5 {[%clk 0:03:00.8]} 10.
Nh2 {[%clk 0:02:56.8]} 10... Rg8 {[%clk 0:03:00.5]} 11. Ng4 {[%clk 0:02:56]}
11... h5 {[%clk 0:02:57.8]} 12. Nxf6+ {[%clk 0:02:53.8]} 12... Qxf6 {[%clk
0:02:58.7]} 13. Qxh5 {[%clk 0:02:49.7]} 13... Bxf2+ {[%clk 0:02:53.4]} 14. Kh2
{[%clk 0:02:48.9]} 14... Bxe1 {[%clk 0:02:52.4]} 15. Na3 {[%clk 0:02:49.3]}
15... g4 {[%clk 0:02:49.6]} 16. Be3 {[%clk 0:02:22.4]} 16... g3+ {[%clk
0:02:48.4]} 17. Kh1 {[%clk 0:02:22]} 17... Bf2 {[%clk 0:02:48.2]} 18. Rf1 {[%clk
0:02:19.8]} 18... Be6 {[%clk 0:02:46.2]} 19. Bxe6 {[%clk 0:02:15.9]} 19... Qxe6
{[%clk 0:02:47.1]} 20. Bxf2 {[%clk 0:02:16.2]} 20... gxf2 {[%clk 0:02:47.3]} 21.
Rxf2 {[%clk 0:02:17.1]} 21... O-O-O {[%clk 0:02:43.5]} 22. Nc4 {[%clk
0:02:17.4]} 22... Rg3 {[%clk 0:02:37.9]} 23. Ne3 {[%clk 0:02:16.3]} 23... Rxe3
{[%clk 0:02:37.1]} 0-1

[Event "*** Titled Tuesday Blitz"]
[Site "Chess.com"]
[Date "2021.03.02"]
[Round "6"]
[White "enriquebutti"]
[Black "kai_nov"]
[Result "0-1"]
[WhiteElo "2173"]
[BlackElo "2386"]
[TimeControl "180+1"]
[EndTime "11:02:17 PST"]
[Termination "kai_nov won by resignation"]

1. d4 {[%clk 0:03:00.6]} 1... d5 {[%clk 0:02:58.4]} 2. c4 {[%clk 0:02:59.9]}
2... e6 {[%clk 0:02:58.1]} 3. Nf3 {[%clk 0:02:58.9]} 3... c6 {[%clk 0:02:58.4]}
4. e3 {[%clk 0:02:58.5]} 4... Nf6 {[%clk 0:02:57.5]} 5. Bd3 {[%clk 0:02:57.9]}
5... Nbd7 {[%clk 0:02:56]} 6. O-O {[%clk 0:02:56.9]} 6... Bd6 {[%clk 0:02:52]}
7. Nc3 {[%clk 0:02:56.1]} 7... dxc4 {[%clk 0:02:48.9]} 8. Bxc4 {[%clk
0:02:55.4]} 8... b5 {[%clk 0:02:48.4]} 9. Bd3 {[%clk 0:02:49.5]} 9... O-O {[%clk
0:02:43.5]} 10. e4 {[%clk 0:02:46]} 10... e5 {[%clk 0:02:41.5]} 11. d5 {[%clk
0:02:37.6]} 11... cxd5 {[%clk 0:02:37.3]} 12. exd5 {[%clk 0:02:37.4]} 12... b4
{[%clk 0:02:35.8]} 13. Nb5 {[%clk 0:02:36.6]} 13... Bc5 {[%clk 0:02:24.1]} 14.
Bc4 {[%clk 0:02:09.3]} 14... a6 {[%clk 0:02:17.2]} 0-1

[Event "*** Titled Tuesday Blitz"]
[Site "Chess.com"]
[Date "2021.03.02"]
[Round "6"]
[White "Angel_Hranitel_37"]
[Black "saikrishnaReturns"]
[Result "0-1"]
[WhiteElo "2501"]
[BlackElo "2653"]
[TimeControl "180+1"]
[EndTime "11:02:45 PST"]
[Termination "saikrishnaReturns won by resignation"]

1. d4 {[%clk 0:03:00.9]} 1... Nf6 {[%clk 0:02:59.5]} 2. Bg5 {[%clk 0:02:58.1]}
2... c5 {[%clk 0:02:59]} 3. d5 {[%clk 0:02:56.5]} 3... Ne4 {[%clk 0:02:55.4]} 4.
Be3 {[%clk 0:02:51.2]} 4... Qb6 {[%clk 0:02:53.1]} 5. Qc1 {[%clk 0:02:50.2]}
5... g6 {[%clk 0:02:52.7]} 6. f3 {[%clk 0:02:49.4]} 6... Bg7 {[%clk 0:02:52.3]}
7. c3 {[%clk 0:02:49.3]} 7... Nf6 {[%clk 0:02:49.6]} 8. Qd2 {[%clk 0:02:32.2]}
8... Nxd5 {[%clk 0:02:42.7]} 9. Qxd5 {[%clk 0:02:21.3]} 9... Qxb2 {[%clk
0:02:41.7]} 10. Qxc5 {[%clk 0:02:19.8]} 10... Na6 {[%clk 0:02:30.5]} 11. Qa3
{[%clk 0:02:07.4]} 11... Qxa1 {[%clk 0:02:29.7]} 12. Qc1 {[%clk 0:02:08.3]}
12... Qxa2 {[%clk 0:02:26.9]} 13. Nh3 {[%clk 0:02:08.3]} 13... d5 {[%clk
0:02:24.7]} 14. Kf2 {[%clk 0:02:02.4]} 14... O-O {[%clk 0:02:20.3]} 15. Bd4
{[%clk 0:02:01.3]} 15... e5 {[%clk 0:02:19.2]} 16. Be3 {[%clk 0:01:59.5]} 16...
d4 {[%clk 0:02:18.2]} 17. Bh6 {[%clk 0:01:55.4]} 17... Nc5 {[%clk 0:02:13.7]}
18. Bxg7 {[%clk 0:01:51.2]} 18... Nd3+ {[%clk 0:02:12.5]} 0-1

[Event "*** Titled Tuesday Blitz"]
[Site "Chess.com"]
[Date "2021.03.02"]
[Round "6"]
[White "kuban1991"]
[Black "anon219"]
[Result "1-0"]
[WhiteElo "2961"]
[BlackElo "2855"]
[TimeControl "180+1"]
[EndTime "11:03:02 PST"]
[Termination "kuban1991 won by resignation"]

1. Nf3 {[%clk 0:03:00.9]} 1... d5 {[%clk 0:02:59.5]} 2. g3 {[%clk 0:03:01]} 2...
Nf6 {[%clk 0:02:58.7]} 3. Bg2 {[%clk 0:03:01.2]} 3... c5 {[%clk 0:02:59.1]} 4.
O-O {[%clk 0:03:01.4]} 4... e6 {[%clk 0:02:59.2]} 5. d3 {[%clk 0:03:01.6]} 5...
Nc6 {[%clk 0:02:57.7]} 6. Nbd2 {[%clk 0:03:02.5]} 6... Be7 {[%clk 0:02:57.3]} 7.
e4 {[%clk 0:03:02.7]} 7... O-O {[%clk 0:02:57.5]} 8. e5 {[%clk 0:03:02.8]} 8...
Nd7 {[%clk 0:02:57.6]} 9. Re1 {[%clk 0:03:03.1]} 9... Qc7 {[%clk 0:02:57.8]} 10.
Qe2 {[%clk 0:03:02.9]} 10... b6 {[%clk 0:02:37.7]} 11. h4 {[%clk 0:03:01.9]}
11... Bb7 {[%clk 0:02:34.6]} 12. h5 {[%clk 0:03:00.3]} 12... h6 {[%clk
0:02:34.8]} 13. Nf1 {[%clk 0:02:58.7]} 13... Rfc8 {[%clk 0:02:28.9]} 14. Bf4
{[%clk 0:02:58.8]} 14... a5 {[%clk 0:02:25]} 15. Ne3 {[%clk 0:02:58.4]} 15...
Qd8 {[%clk 0:02:23.8]} 16. c4 {[%clk 0:02:51]} 16... Nd4 {[%clk 0:02:18.2]} 17.
Nxd4 {[%clk 0:02:49.1]} 17... cxd4 {[%clk 0:02:19.1]} 18. Ng4 {[%clk 0:02:48.7]}
18... Nc5 {[%clk 0:02:07]} 19. Rad1 {[%clk 0:02:45.9]} 19... dxc4 {[%clk
0:01:51.3]} 20. Bxb7 {[%clk 0:02:37.1]} 20... cxd3 {[%clk 0:01:43.9]} 21. Qf3
{[%clk 0:02:36.8]} 21... Nxb7 {[%clk 0:01:16.8]} 22. Qxb7 {[%clk 0:02:37.7]} 1-0

[Event "*** Titled Tuesday Blitz"]
[Site "Chess.com"]
[Date "2021.03.02"]
[Round "6"]
[White "Maddie"]
[Black "Bongcloudtransvestit"]
[Result "0-1"]
[WhiteElo "2077"]
[BlackElo "2299"]
[TimeControl "180+1"]
[EndTime "11:03:04 PST"]
[Termination "Bongcloudtransvestit won by resignation"]

1. d4 {[%clk 0:03:00.9]} 1... Nf6 {[%clk 0:02:59.3]} 2. e3 {[%clk 0:03:00.5]}
2... b6 {[%clk 0:02:56.2]} 3. f4 {[%clk 0:02:58.6]} 3... Bb7 {[%clk 0:02:55.9]}
4. Nf3 {[%clk 0:02:57.4]} 4... d6 {[%clk 0:02:56.4]} 5. Bd3 {[%clk 0:02:56.5]}
5... Nbd7 {[%clk 0:02:55.6]} 6. O-O {[%clk 0:02:56.1]} 6... g6 {[%clk
0:02:55.8]} 7. c3 {[%clk 0:02:55.7]} 7... Bg7 {[%clk 0:02:56.2]} 8. Nbd2 {[%clk
0:02:55.4]} 8... O-O {[%clk 0:02:56.4]} 9. e4 {[%clk 0:02:52.4]} 9... e5 {[%clk
0:02:56.6]} 10. fxe5 {[%clk 0:02:41.7]} 10... dxe5 {[%clk 0:02:56.6]} 11. d5
{[%clk 0:02:40.8]} 11... c6 {[%clk 0:02:48.1]} 12. dxc6 {[%clk 0:02:29.3]} 12...
Bxc6 {[%clk 0:02:47.4]} 13. Qe2 {[%clk 0:02:24.7]} 13... Nh5 {[%clk 0:02:35.4]}
14. Ng5 {[%clk 0:02:17.7]} 14... Nf4 {[%clk 0:02:28.8]} 15. Qe3 {[%clk
0:01:56.9]} 15... Qxg5 {[%clk 0:02:25.7]} 16. Rf2 {[%clk 0:01:54.8]} 16... Nc5
{[%clk 0:02:11.5]} 17. Bc2 {[%clk 0:01:45.9]} 17... Rad8 {[%clk 0:02:10.1]} 18.
Nf3 {[%clk 0:01:46.2]} 18... Nh3+ {[%clk 0:02:08.9]} 19. Kf1 {[%clk 0:01:41.6]}
19... Qxe3 {[%clk 0:02:09.4]} 20. Bxe3 {[%clk 0:01:41.1]} 20... Nxf2 {[%clk
0:02:09.8]} 21. Bxf2 {[%clk 0:01:42]} 0-1

[Event "*** Titled Tuesday Blitz"]
[Site "Chess.com"]
[Date "2021.03.02"]
[Round "6"]
[White "Artem_Koval"]
[Black "zeitnot2006"]
[Result "0-1"]
[WhiteElo "2216"]
[BlackElo "2504"]
[TimeControl "180+1"]
[EndTime "11:03:12 PST"]
[Termination "zeitnot2006 won by resignation"]

1. d4 {[%clk 0:03:00.9]} 1... d6 {[%clk 0:02:45.8]} 2. e4 {[%clk 0:02:55.1]}
2... c6 {[%clk 0:02:46.7]} 3. Nc3 {[%clk 0:02:52.9]} 3... g6 {[%clk 0:02:47.6]}
4. Nf3 {[%clk 0:02:51.5]} 4... Bg7 {[%clk 0:02:48]} 5. Be3 {[%clk 0:02:51.5]}
5... Nf6 {[%clk 0:02:45.6]} 6. Qd2 {[%clk 0:02:50.9]} 6... h6 {[%clk 0:02:46.3]}
7. Bd3 {[%clk 0:02:50.2]} 7... Qc7 {[%clk 0:02:44.7]} 8. O-O-O {[%clk
0:02:47.8]} 8... Ng4 {[%clk 0:02:45]} 9. Bf4 {[%clk 0:02:40.5]} 9... e5 {[%clk
0:02:45.5]} 10. dxe5 {[%clk 0:02:37.8]} 10... dxe5 {[%clk 0:02:46.4]} 11. Bg3
{[%clk 0:02:37.1]} 11... h5 {[%clk 0:02:47.1]} 12. h3 {[%clk 0:02:36.5]} 12...
Bh6 {[%clk 0:02:46.2]} 13. Ng5 {[%clk 0:02:27.9]} 13... f6 {[%clk 0:02:40.1]}
14. f4 {[%clk 0:02:27.7]} 14... fxg5 {[%clk 0:02:35]} 15. hxg4 {[%clk 0:02:25]}
15... gxf4 {[%clk 0:02:34.8]} 16. g5 {[%clk 0:01:57.5]} 16... Bxg5 {[%clk
0:02:33.2]} 17. Bf2 {[%clk 0:01:57.3]} 17... Bg4 {[%clk 0:02:29.3]} 18. Rdg1
{[%clk 0:01:54.1]} 18... Qe7 {[%clk 0:02:25.2]} 19. Kb1 {[%clk 0:01:41.8]} 19...
Nd7 {[%clk 0:02:21.5]} 20. Be2 {[%clk 0:01:27.8]} 20... f3 {[%clk 0:02:19.7]}
0-1

[Event "*** Titled Tuesday Blitz"]
[Site "Chess.com"]
[Date "2021.03.02"]
[Round "6"]
[White "heyjohnnypark"]
[Black "JoliyRoger"]
[Result "1-0"]
[WhiteElo "2614"]
[BlackElo "2470"]
[TimeControl "180+1"]
[EndTime "11:03:16 PST"]
[Termination "heyjohnnypark won by resignation"]

1. d4 {[%clk 0:03:00.9]} 1... Nf6 {[%clk 0:02:59.4]} 2. Nf3 {[%clk 0:03:01.3]}
2... e6 {[%clk 0:02:58.8]} 3. e3 {[%clk 0:03:01.4]} 3... c5 {[%clk 0:02:57.4]}
4. Bd3 {[%clk 0:03:02.3]} 4... d5 {[%clk 0:02:57.2]} 5. c3 {[%clk 0:03:01.7]}
5... Nbd7 {[%clk 0:02:57.2]} 6. Nbd2 {[%clk 0:02:57.9]} 6... Bd6 {[%clk
0:02:57.7]} 7. O-O {[%clk 0:02:58.1]} 7... O-O {[%clk 0:02:55.1]} 8. Re1 {[%clk
0:02:57.5]} 8... Qc7 {[%clk 0:02:53.9]} 9. e4 {[%clk 0:02:56.3]} 9... cxd4
{[%clk 0:02:52.5]} 10. cxd4 {[%clk 0:02:54.1]} 10... dxe4 {[%clk 0:02:52.8]} 11.
Nxe4 {[%clk 0:02:55]} 11... Nxe4 {[%clk 0:02:53.2]} 12. Rxe4 {[%clk 0:02:55.7]}
12... Nf6 {[%clk 0:02:09.6]} 13. Rh4 {[%clk 0:02:54.5]} 13... Be7 {[%clk
0:01:52.5]} 14. Bg5 {[%clk 0:02:33.4]} 14... h6 {[%clk 0:01:50]} 15. Bxh6 {[%clk
0:02:30.1]} 15... gxh6 {[%clk 0:01:38]} 16. Qd2 {[%clk 0:02:30.2]} 16... h5
{[%clk 0:01:11.5]} 17. Qg5+ {[%clk 0:02:28]} 17... Kh8 {[%clk 0:01:10.6]} 18.
Rxh5+ {[%clk 0:02:26.1]} 18... Nxh5 {[%clk 0:01:09.7]} 19. Qh6+ {[%clk
0:02:25.3]} 1-0

[Event "*** Titled Tuesday Blitz"]
[Site "Chess.com"]
[Date "2021.03.02"]
[Round "6"]
[White "baki83"]
[Black "DenishevM"]
[Result "1-0"]
[WhiteElo "2818"]
[BlackElo "2629"]
[TimeControl "180+1"]
[EndTime "11:03:20 PST"]
[Termination "baki83 won by resignation"]

1. e4 {[%clk 0:03:00.9]} 1... c5 {[%clk 0:02:59.9]} 2. Nf3 {[%clk 0:03:00.9]}
2... d6 {[%clk 0:03:00.1]} 3. d4 {[%clk 0:03:01]} 3... cxd4 {[%clk 0:03:01]} 4.
Nxd4 {[%clk 0:03:01.4]} 4... Nf6 {[%clk 0:03:01.4]} 5. Nc3 {[%clk 0:03:01.6]}
5... a6 {[%clk 0:03:01.7]} 6. Bc4 {[%clk 0:03:01.1]} 6... e6 {[%clk 0:03:01.6]}
7. Bb3 {[%clk 0:03:00.5]} 7... b5 {[%clk 0:03:01.6]} 8. Qe2 {[%clk 0:02:57.7]}
8... Qc7 {[%clk 0:02:58.7]} 9. Bg5 {[%clk 0:02:56.2]} 9... Be7 {[%clk
0:02:58.6]} 10. O-O-O {[%clk 0:02:54.8]} 10... O-O {[%clk 0:02:53.1]} 11. f4
{[%clk 0:02:47.1]} 11... Bb7 {[%clk 0:02:31.6]} 12. Bxe6 {[%clk 0:02:45]} 12...
fxe6 {[%clk 0:02:31.9]} 13. Nxe6 {[%clk 0:02:45.5]} 13... Qc4 {[%clk 0:01:54.3]}
14. Qxc4 {[%clk 0:02:44.5]} 14... bxc4 {[%clk 0:01:55.2]} 15. e5 {[%clk
0:02:33.5]} 15... dxe5 {[%clk 0:01:45.7]} 16. fxe5 {[%clk 0:02:31.8]} 16... Ng4
{[%clk 0:01:20.5]} 17. Bxe7 {[%clk 0:02:28.9]} 17... Re8 {[%clk 0:01:20.5]} 18.
Nc7 {[%clk 0:02:24]} 18... Rxe7 {[%clk 0:01:20.1]} 19. Rd8+ {[%clk 0:02:23.9]}
19... Kf7 {[%clk 0:01:19.7]} 20. Rf1+ {[%clk 0:02:19.5]} 20... Kg6 {[%clk
0:01:18.6]} 21. Nxa8 {[%clk 0:02:18.5]} 1-0

[Event "*** Titled Tuesday Blitz"]
[Site "Chess.com"]
[Date "2021.03.02"]
[Round "6"]
[White "PrinceMurad09"]
[Black "Mazetovic"]
[Result "1-0"]
[WhiteElo "2540"]
[BlackElo "2702"]
[TimeControl "180+1"]
[EndTime "11:03:32 PST"]
[Termination "PrinceMurad09 won by resignation"]

1. e4 {[%clk 0:03:00.9]} 1... c5 {[%clk 0:02:59.5]} 2. Nf3 {[%clk 0:02:59.1]}
2... Nc6 {[%clk 0:02:59.4]} 3. d4 {[%clk 0:02:55.1]} 3... cxd4 {[%clk
0:03:00.3]} 4. Nxd4 {[%clk 0:02:56]} 4... g6 {[%clk 0:03:00.5]} 5. Nc3 {[%clk
0:02:53.7]} 5... Bg7 {[%clk 0:02:58.5]} 6. Be3 {[%clk 0:02:53.7]} 6... Nf6
{[%clk 0:02:57.6]} 7. Bc4 {[%clk 0:02:53.9]} 7... Qa5 {[%clk 0:02:55.9]} 8. O-O
{[%clk 0:02:52.8]} 8... O-O {[%clk 0:02:55.3]} 9. Bb3 {[%clk 0:02:52.9]} 9... d6
{[%clk 0:02:53.7]} 10. h3 {[%clk 0:02:53.1]} 10... Bd7 {[%clk 0:02:53.6]} 11.
Re1 {[%clk 0:02:37]} 11... Rfc8 {[%clk 0:02:51.3]} 12. Nxc6 {[%clk 0:02:35.1]}
12... Bxc6 {[%clk 0:02:42.6]} 13. Bd4 {[%clk 0:02:34.9]} 13... e5 {[%clk
0:02:38.1]} 14. Be3 {[%clk 0:02:29.3]} 14... Nxe4 {[%clk 0:02:34.5]} 15. Nxe4
{[%clk 0:02:13.1]} 15... Bxe4 {[%clk 0:02:34.4]} 16. Bd2 {[%clk 0:02:10.2]}
16... Bxc2 {[%clk 0:02:31.5]} 17. Bxa5 {[%clk 0:02:04.4]} 17... Bxd1 {[%clk
0:02:31.1]} 18. Rexd1 {[%clk 0:02:00.3]} 18... Bf8 {[%clk 0:02:32]} 19. Bb4
{[%clk 0:01:58.7]} 19... Rc6 {[%clk 0:02:30.4]} 20. Rac1 {[%clk 0:01:55.1]}
20... Rd8 {[%clk 0:02:25.2]} 21. Bd5 {[%clk 0:01:52.8]} 21... Rcc8 {[%clk
0:02:20.6]} 22. Bxb7 {[%clk 0:01:43.7]} 22... Rb8 {[%clk 0:02:20]} 23. Rc7
{[%clk 0:01:43.4]} 23... d5 {[%clk 0:01:55.4]} 24. Bxf8 {[%clk 0:01:40.1]} 24...
Kxf8 {[%clk 0:01:54.8]} 25. Bxd5 {[%clk 0:01:34.2]} 1-0

[Event "*** Titled Tuesday Blitz"]
[Site "Chess.com"]
[Date "2021.03.02"]
[Round "6"]
[White "Legendinunknown"]
[Black "mjray79"]
[Result "1-0"]
[WhiteElo "2615"]
[BlackElo "2471"]
[TimeControl "180+1"]
[EndTime "11:03:38 PST"]
[Termination "Legendinunknown won by resignation"]

1. d4 {[%clk 0:03:00.9]} 1... Nf6 {[%clk 0:02:59.5]} 2. c4 {[%clk 0:03:00.8]}
2... g6 {[%clk 0:02:59.2]} 3. Nc3 {[%clk 0:03:01.3]} 3... Bg7 {[%clk 0:02:59.4]}
4. e4 {[%clk 0:03:01.8]} 4... d6 {[%clk 0:02:59.9]} 5. Nf3 {[%clk 0:03:02.2]}
5... O-O {[%clk 0:03:00]} 6. Be2 {[%clk 0:03:02.7]} 6... e5 {[%clk 0:03:00.1]}
7. d5 {[%clk 0:03:03.2]} 7... a5 {[%clk 0:02:59.5]} 8. Bg5 {[%clk 0:03:02.4]}
8... Na6 {[%clk 0:02:58.8]} 9. Nd2 {[%clk 0:03:00.1]} 9... Nc5 {[%clk
0:02:56.4]} 10. Qc2 {[%clk 0:02:53.2]} 10... Bd7 {[%clk 0:02:55.9]} 11. O-O-O
{[%clk 0:02:48.5]} 11... h6 {[%clk 0:02:50.9]} 12. Be3 {[%clk 0:02:47.6]} 12...
Nh7 {[%clk 0:02:47.2]} 13. g4 {[%clk 0:02:45.3]} 13... f5 {[%clk 0:02:46.2]} 14.
gxf5 {[%clk 0:02:44.4]} 14... gxf5 {[%clk 0:02:47.1]} 15. Rhg1 {[%clk
0:02:41.9]} 15... f4 {[%clk 0:02:43.8]} 16. Bxc5 {[%clk 0:02:41.1]} 16... dxc5
{[%clk 0:02:44.7]} 17. Bg4 {[%clk 0:02:40.7]} 17... Nf6 {[%clk 0:02:32.2]} 18.
Bxd7 {[%clk 0:02:36.6]} 18... Qxd7 {[%clk 0:02:33.1]} 19. Nf3 {[%clk 0:02:37.1]}
19... Qe7 {[%clk 0:02:27.2]} 20. Rg6 {[%clk 0:02:32.7]} 20... Kh7 {[%clk
0:02:23.5]} 21. Rdg1 {[%clk 0:02:30.5]} 21... Rg8 {[%clk 0:02:23.4]} 22. Nh4
{[%clk 0:02:28.5]} 22... Nh5 {[%clk 0:01:51]} 23. Nf5 {[%clk 0:02:25.7]} 23...
Qf7 {[%clk 0:01:50.6]} 24. Qd1 {[%clk 0:02:21.6]} 24... Ng3 {[%clk 0:01:30.9]}
25. Rxg7+ {[%clk 0:02:13.6]} 25... Rxg7 {[%clk 0:01:30.7]} 26. Nxg7 {[%clk
0:02:14.5]} 26... Nh5 {[%clk 0:01:19.4]} 27. Qxh5 {[%clk 0:02:11.7]} 1-0

[Event "*** Titled Tuesday Blitz"]
[Site "Chess.com"]
[Date "2021.03.02"]
[Round "6"]
[White "Michaelson_11"]
[Black "Kislov_Oleg"]
[Result "0-1"]
[WhiteElo "2267"]
[BlackElo "2489"]
[TimeControl "180+1"]
[EndTime "11:04:14 PST"]
[Termination "Kislov_Oleg won by resignation"]

1. e4 {[%clk 0:03:00.9]} 1... e6 {[%clk 0:02:59.7]} 2. d4 {[%clk 0:03:00.7]}
2... d5 {[%clk 0:02:59.7]} 3. Nd2 {[%clk 0:03:00.3]} 3... Nf6 {[%clk 0:02:57.7]}
4. e5 {[%clk 0:02:58.7]} 4... Nfd7 {[%clk 0:02:57.4]} 5. Bd3 {[%clk 0:02:59.3]}
5... c5 {[%clk 0:02:53.8]} 6. c3 {[%clk 0:02:59.4]} 6... Nc6 {[%clk 0:02:48.4]}
7. Ne2 {[%clk 0:02:57.7]} 7... cxd4 {[%clk 0:02:47]} 8. cxd4 {[%clk 0:02:56.8]}
8... f6 {[%clk 0:02:44.6]} 9. exf6 {[%clk 0:02:54.3]} 9... Nxf6 {[%clk
0:02:45.5]} 10. Nf3 {[%clk 0:02:52.4]} 10... Bd6 {[%clk 0:02:45.3]} 11. O-O
{[%clk 0:02:51]} 11... O-O {[%clk 0:02:45]} 12. Bf4 {[%clk 0:02:40.7]} 12...
Bxf4 {[%clk 0:02:44.5]} 13. Nxf4 {[%clk 0:02:41.2]} 13... Qd6 {[%clk 0:02:44.4]}
14. g3 {[%clk 0:02:16.6]} 14... e5 {[%clk 0:02:39.9]} 15. dxe5 {[%clk
0:02:09.1]} 15... Nxe5 {[%clk 0:02:39.7]} 16. Nxe5 {[%clk 0:02:09.3]} 16... Qxe5
{[%clk 0:02:38.9]} 17. Re1 {[%clk 0:02:09.5]} 17... Qd6 {[%clk 0:02:29.8]} 18.
Qb3 {[%clk 0:02:04.9]} 18... b6 {[%clk 0:02:17.8]} 19. Nxd5 {[%clk 0:01:39.6]}
19... Nxd5 {[%clk 0:02:08.3]} 20. Bc4 {[%clk 0:01:37.4]} 20... Bb7 {[%clk
0:02:05.1]} 21. Rad1 {[%clk 0:01:32]} 21... Rad8 {[%clk 0:02:04.1]} 22. Rxd5
{[%clk 0:01:29.2]} 22... Bxd5 {[%clk 0:02:02.8]} 23. Rd1 {[%clk 0:01:26.7]}
23... Rf5 {[%clk 0:01:45]} 24. g4 {[%clk 0:01:13.4]} 24... Rg5 {[%clk
0:01:43.9]} 0-1

[Event "*** Titled Tuesday Blitz"]
[Site "Chess.com"]
[Date "2021.03.02"]
[Round "6"]
[White "MergenKakabaev"]
[Black "bylavochka"]
[Result "0-1"]
[WhiteElo "2376"]
[BlackElo "2201"]
[TimeControl "180+1"]
[EndTime "11:04:42 PST"]
[Termination "bylavochka won by resignation"]

1. e4 {[%clk 0:03:00.9]} 1... c5 {[%clk 0:02:59.4]} 2. Nf3 {[%clk 0:02:59.2]}
2... d6 {[%clk 0:02:59.7]} 3. d4 {[%clk 0:02:53.8]} 3... cxd4 {[%clk 0:03:00.6]}
4. Nxd4 {[%clk 0:02:54.5]} 4... Nf6 {[%clk 0:03:00.9]} 5. Nc3 {[%clk 0:02:54.2]}
5... g6 {[%clk 0:03:01.3]} 6. Be2 {[%clk 0:02:53.6]} 6... Bg7 {[%clk 0:03:01.2]}
7. Be3 {[%clk 0:02:54.3]} 7... O-O {[%clk 0:03:01.4]} 8. Qd2 {[%clk 0:02:54.9]}
8... Nc6 {[%clk 0:03:01.7]} 9. h4 {[%clk 0:02:54.7]} 9... h5 {[%clk 0:02:45]}
10. f3 {[%clk 0:02:52.6]} 10... Ne5 {[%clk 0:02:26]} 11. g4 {[%clk 0:02:49.8]}
11... hxg4 {[%clk 0:02:18.5]} 12. f4 {[%clk 0:02:48.1]} 12... Nc6 {[%clk
0:02:01]} 13. Nxc6 {[%clk 0:02:44.1]} 13... bxc6 {[%clk 0:02:01.9]} 14. f5
{[%clk 0:02:43.9]} 14... d5 {[%clk 0:01:22.5]} 15. fxg6 {[%clk 0:02:32]} 15...
fxg6 {[%clk 0:01:20.4]} 16. e5 {[%clk 0:02:08.4]} 16... Nh5 {[%clk 0:01:09.3]}
17. Bh6 {[%clk 0:02:06.1]} 17... Qc7 {[%clk 0:00:48.3]} 18. Bxg7 {[%clk
0:02:03.6]} 18... Kxg7 {[%clk 0:00:47.2]} 19. O-O-O {[%clk 0:01:43.8]} 19...
Qxe5 {[%clk 0:00:43.3]} 20. Rdf1 {[%clk 0:01:42.8]} 20... Be6 {[%clk 0:00:39.6]}
0-1